Workbook

Sheet Úvodní list
A1: Položka | G1: Hodnota | H1: Jednotka | I1: Pozn
A3: Zelený bonus na elektřinu | G3: 0 | H3: Kč/Mwh | I3: 3390 Kč/Mwh - Výše ZB pro BPS využívající kat. biomasy AF1, do provozu v roce 2012, využití min. 10 % tepla, dle cen. rozhodnutí ERÚ č. 9/2015.
A5: Zelený bonus na teplo | G5: 786.5764857 | H5: Kč/GJ
A7: Využité teplo | G7: 60 | H7: %
A9: Investiční podpora | G9: 0 | H9: %
A12: FCFF | B12: NPV | C12: ='Cash flow'!C30+NPV(Zadání!B38,'Cash flow'!D30:W30) -> 2.504083432
B13: IRR | C13: =IRR('Cash flow'!C30:W30) -> 0.03400001342
A15: FCFE | B15: NPV | C15: ='Cash flow'!C31+NPV(Zadání!B37,'Cash flow'!D31:W31) -> 384130.302
B16: IRR | C16: =IRR('Cash flow'!C31:W31) -> 0.08794789848

Sheet Zadání
A1: Položka | B1: Hodnota | C1: Jednotka | D1: Pozn
A2: Investice
A3: Celková cena | B3: 19300000 | C3: Kč
A4: Investiční dotace | B4: =-B3*('Úvodní list'!G9/100) -> 0 | C4: Kč
A5: Celkem | B5: =B3+B4 -> 19300000 | C5: Kč
A6: Nákladová položka
A7: Údržba příslušenství (bez KJ) | B7: 50000 | C7: Kč
A8: Náklady na výrobu surovin OZE | B8: 808500 | C8: Kč
A9: Mzdový náklad na provoz | B9: 650000 | C9: Kč
A10: Pohonné hmoty | B10: 200000 | C10: Kč
A11: Údržba, výměna oleje a provozní olej | B11: 20000 | C11: Kč
A12: Spotřeba el. Energie | B12: 35162 | C12: Kč
A13: Celkem | B13: =SUM(B7:B12) -> 1763662 | C13: Kč
A14: Produkce BPS
A15: Elektrický výkon | B15: 99.11 | C15: kW
A16: Tepelný výkon | B16: 133.96 | C16: kW
A17: Srážka - údržba, opravy (teplo i elektřina) | B17: 0.1
A18: Vlastní spotřeba elektřiny BPS | B18: 0.1
A19: Ztráty elektřiny v transformátoru | B19: 0.02
A20: Využité teplo | B20: ='Úvodní list'!G7/100 -> 0.6
A21: Vlastní spotřeba tepla z využitého | B21: 0.25
A22: Produkce digestátu | B22: 6615 | C22: t/rok
A23: Ceny
A24: Výkup elektřiny | B24: 700 | C24: Kč/MWh
A25: Cena tepla | B25: 350 | C25: kč/GJ
A26: Zelený bonus na elektřinu | B26: ='Úvodní list'!G3 -> 0 | C26: Kč/MWh
A27: Zelený bonus na teplo | B27: ='Úvodní list'!G5 -> 786.5764857 | C27: kč/GJ
A28: Cena digestátu | B28: 50 | C28: Kč/t
A29: Úvěr
A30: Cizí kapitál | B30: 0.9
A31: Úrok | B31: 0.03
A32: Doba splácení | B32: 20 | C32: let
A33: Ostatní
A34: Daň z příjmu | B34: 0.19
A35: Doba hodnocení | B35: 20 | C35: let
A36: Inflace | B36: 0.02
A37: Výnos vlastního kapitálu | B37: 0.07
A38: WACC | B38: =B37*(1-B30)+B31*B30 -> 0.034

Sheet Produkce energie
A1: Položka | B1: Hodnota | C1: Jednotka | D1: Pozn
A2: Elektřina
A3: Vyrobená elektřina | B3: =365*24*Zadání!B15*(1-Zadání!B17) -> 781383.24 | C3: kWh
A4: Technologická vlastní spotřeba | B4: =-B3*Zadání!B18 -> -78138.324 | C4: kWh
A5: Ztráty v transformátoru | B5: =-'Produkce energie'!B3*Zadání!B19 -> -15627.6648 | C5: kWh
A6: Celkem | B6: =SUM(B3:B5) -> 687617.2512 | C6: kWh
A7: Teplo
A8: Vyrobené tepelná energie | B8: =(365*24*Zadání!B16)/1000*3.6 -> 4224.56256 | C8: GJ
A9: Využitá tepelná energie | B9: =B8*Zadání!B20 -> 2534.737536 | C9: GJ
A10: Vlastní spotřeba tepla BPS | B10: =-B9*Zadání!B21 -> -633.684384 | C10: GJ
A11: Celkem prodej | B11: =B9+B10 -> 1901.053152 | C11: GJ

Sheet Úvěr
B1: 2016 | C1: 2017 | D1: 2018 | E1: 2019 | F1: 2020 | G1: 2021 | H1: 2022 | I1: 2023 | J1: 2024 | K1: 2025 | L1: 2026 | M1: 2027 | N1: 2028 | O1: 2029 | P1: 2030 | Q1: 2031 | R1: 2032 | S1: 2033 | T1: 2034 | U1: 2035 | V1: 2036
A2: Dluh | B2: =Zadání!B5*Zadání!B30 -> 17370000 | C2: =B2-C4 -> 16723563.16 | D2: =C2-D4 -> 16057733.21 | E2: 15371928.37 | F2: 14665549.38 | G2: 13937979.02 | H2: 13188581.55 | I2: 12416702.15 | J2: 11621666.38 | K2: 10802779.53 | L2: 9959326.073 | M2: 9090569.014 | N2: 8195749.243 | O2: 7274084.88 | P2: 6324770.585 | Q2: 5346976.862 | R2: =Q2-R4 -> 4339849.327 | S2: =R2-S4 -> 3302507.966 | T2: =S2-T4 -> 2234046.364 | U2: =T2-U4 -> 1133530.914 | V2: =U2-V4 -> 6.752088666e-09
A3: Úrok | B3: 0 | C3: =B2*Zadání!$B$31 -> 521100 | D3: =C2*Zadání!$B$31 -> 501706.8948 | E3: =D2*Zadání!$B$31 -> 481731.9964 | F3: =E2*Zadání!$B$31 -> 461157.851 | G3: =F2*Zadání!$B$31 -> 439966.4814 | H3: =G2*Zadání!$B$31 -> 418139.3706 | I3: =H2*Zadání!$B$31 -> 395657.4465 | J3: =I2*Zadání!$B$31 -> 372501.0646 | K3: =J2*Zadání!$B$31 -> 348649.9913 | L3: =K2*Zadání!$B$31 -> 324083.3858 | M3: =L2*Zadání!$B$31 -> 298779.7822 | N3: =M2*Zadání!$B$31 -> 272717.0704 | O3: =N2*Zadání!$B$31 -> 245872.4773 | P3: =O2*Zadání!$B$31 -> 218222.5464 | Q3: =P2*Zadání!$B$31 -> 189743.1176 | R3: =Q2*Zadání!$B$31 -> 160409.3059 | S3: =R2*Zadání!$B$31 -> 130195.4798 | T3: =S2*Zadání!$B$31 -> 99075.23897 | U3: =T2*Zadání!$B$31 -> 67021.39091 | V3: =U2*Zadání!$B$31 -> 34005.92741
A4: Úmor | B4: 0 | C4: =C5-C3 -> 646436.841 | D4: =D5-D3 -> 665829.9462 | E4: =E5-E3 -> 685804.8446 | F4: 706378.9899 | G4: 727570.3596 | H4: 749397.4704 | I4: 771879.3945 | J4: 795035.7763 | K4: 818886.8496 | L4: 843453.4551 | M4: 868757.0588 | N4: 894819.7705 | O4: =O5-O3 -> 921664.3637 | P4: 949314.2946 | Q4: 977793.7234 | R4: 1007127.535 | S4: 1037341.361 | T4: 1068461.602 | U4: 1100515.45 | V4: 1133530.914
A5: Splátka | B5: 0 | C5: =-PMT(Zadání!$B$31,Zadání!$B$32,Úvěr!$B$2,0,0) -> 1167536.841 | D5: =-PMT(Zadání!$B$31,Zadání!$B$32,Úvěr!$B$2,0,0) -> 1167536.841 | E5: =-PMT(Zadání!$B$31,Zadání!$B$32,Úvěr!$B$2,0,0) -> 1167536.841 | F5: =-PMT(Zadání!$B$31,Zadání!$B$32,Úvěr!$B$2,0,0) -> 1167536.841 | G5: =-PMT(Zadání!$B$31,Zadání!$B$32,Úvěr!$B$2,0,0) -> 1167536.841 | H5: =-PMT(Zadání!$B$31,Zadání!$B$32,Úvěr!$B$2,0,0) -> 1167536.841 | I5: =-PMT(Zadání!$B$31,Zadání!$B$32,Úvěr!$B$2,0,0) -> 1167536.841 | J5: =-PMT(Zadání!$B$31,Zadání!$B$32,Úvěr!$B$2,0,0) -> 1167536.841 | K5: =-PMT(Zadání!$B$31,Zadání!$B$32,Úvěr!$B$2,0,0) -> 1167536.841 | L5: =-PMT(Zadání!$B$31,Zadání!$B$32,Úvěr!$B$2,0,0) -> 1167536.841 | M5: =-PMT(Zadání!$B$31,Zadání!$B$32,Úvěr!$B$2,0,0) -> 1167536.841 | N5: =-PMT(Zadání!$B$31,Zadání!$B$32,Úvěr!$B$2,0,0) -> 1167536.841 | O5: =-PMT(Zadání!$B$31,Zadání!$B$32,Úvěr!$B$2,0,0) -> 1167536.841 | P5: =-PMT(Zadání!$B$31,Zadání!$B$32,Úvěr!$B$2,0,0) -> 1167536.841 | Q5: =-PMT(Zadání!$B$31,Zadání!$B$32,Úvěr!$B$2,0,0) -> 1167536.841 | R5: =-PMT(Zadání!$B$31,Zadání!$B$32,Úvěr!$B$2,0,0) -> 1167536.841 | S5: =-PMT(Zadání!$B$31,Zadání!$B$32,Úvěr!$B$2,0,0) -> 1167536.841 | T5: =-PMT(Zadání!$B$31,Zadání!$B$32,Úvěr!$B$2,0,0) -> 1167536.841 | U5: =-PMT(Zadání!$B$31,Zadání!$B$32,Úvěr!$B$2,0,0) -> 1167536.841 | V5: =-PMT(Zadání!$B$31,Zadání!$B$32,Úvěr!$B$2,0,0) -> 1167536.841

Sheet Cash flow
A1: Položka | B1: Meziroční růst | C1: 2016 | D1: 2017 | E1: 2018 | F1: 2019 | G1: 2020 | H1: 2021 | I1: 2022 | J1: 2023 | K1: 2024 | L1: 2025 | M1: 2026 | N1: 2027 | O1: 2028 | P1: 2029 | Q1: 2030 | R1: 2031 | S1: 2032 | T1: 2033 | U1: 2034 | V1: 2035 | W1: 2036
A2: Výnosy
A3: Prodej elektřiny | B3: =Zadání!$B$36 -> 0.02 | C3: 0 | D3: ='Produkce energie'!B6*Zadání!B24/1000 -> 481332.0758 | E3: =D3*(1+$B$3) -> 490958.7174 | F3: =E3*(1+$B$3) -> 500777.8917 | G3: =F3*(1+$B$3) -> 510793.4495 | H3: 521009.3185 | I3: =H3*(1+$B$3) -> 531429.5049 | J3: =I3*(1+$B$3) -> 542058.095 | K3: 552899.2569 | L3: 563957.242 | M3: 575236.3869 | N3: 586741.1146 | O3: 598475.9369 | P3: 610445.4556 | Q3: 622654.3648 | R3: 635107.4521 | S3: 647809.6011 | T3: 660765.7931 | U3: 673981.109 | V3: 687460.7312 | W3: 701209.9458
A4: Zelený bonus na elektřinu | B4: =Zadání!$B$36 -> 0.02 | C4: 0 | D4: ='Produkce energie'!B6*Zadání!B26/1000 -> 0 | E4: =D4*(1+$B$4) -> 0 | F4: =E4*(1+$B$4) -> 0 | G4: 0 | H4: 0 | I4: 0 | J4: 0 | K4: 0 | L4: 0 | M4: 0 | N4: 0 | O4: 0 | P4: 0 | Q4: 0 | R4: 0 | S4: 0 | T4: 0 | U4: 0 | V4: 0 | W4: 0
A5: Prodej tepla | B5: =Zadání!$B$36 -> 0.02 | C5: 0 | D5: ='Produkce energie'!B11*Zadání!$B$25 -> 665368.6032 | E5: =D5*(1+$B$5) -> 678675.9753 | F5: =E5*(1+$B$5) -> 692249.4948 | G5: 706094.4847 | H5: 720216.3744 | I5: 734620.7018 | J5: 749313.1159 | K5: 764299.3782 | L5: 779585.3658 | M5: 795177.0731 | N5: 811080.6145 | O5: 827302.2268 | P5: 843848.2714 | Q5: 860725.2368 | R5: 877939.7415 | S5: 895498.5364 | T5: 913408.5071 | U5: 931676.6772 | V5: 950310.2108 | W5: 969316.415
A6: Zelený bonus na teplo | B6: =Zadání!$B$36 -> 0.02 | C6: 0 | D6: ='Produkce energie'!B11*Zadání!B27 -> 1495323.707 | E6: =D6*(1+$B$6) -> 1525230.182 | F6: =E6*(1+$B$6) -> 1555734.785 | G6: 1586849.481 | H6: 1618586.47 | I6: 1650958.2 | J6: 1683977.364 | K6: 1717656.911 | L6: 1752010.049 | M6: 1787050.25 | N6: 1822791.255 | O6: 1859247.08 | P6: 1896432.022 | Q6: 1934360.663 | R6: 1973047.876 | S6: 2012508.833 | T6: 2052759.01 | U6: 2093814.19 | V6: 2135690.474 | W6: 2178404.283
A7: Prodej digestátu | B7: =Zadání!$B$36 -> 0.02 | C7: 0 | D7: =Zadání!$B$22*Zadání!$B$28 -> 330750 | E7: =D7*(1+$B$7) -> 337365 | F7: =E7*(1+$B$7) -> 344112.3 | G7: 350994.546 | H7: 358014.4369 | I7: 365174.7257 | J7: 372478.2202 | K7: 379927.7846 | L7: 387526.3403 | M7: 395276.8671 | N7: 403182.4044 | O7: 411246.0525 | P7: 419470.9736 | Q7: 427860.393 | R7: 436417.6009 | S7: 445145.9529 | T7: 454048.872 | U7: 463129.8494 | V7: 472392.4464 | W7: 481840.2953
A9: Provozní náklady
A10: =Zadání!A7 -> Údržba příslušenství (bez KJ) | B10: 0.02 | C10: 0 | D10: =Zadání!B7 -> 50000 | E10: =D10*(1+$B$10) -> 51000 | F10: =E10*(1+$B$10) -> 52020 | G10: =F10*(1+$B$10) -> 53060.4 | H10: 54121.608 | I10: 55204.04016 | J10: 56308.12096 | K10: 57434.28338 | L10: 58582.96905 | M10: 59754.62843 | N10: 60949.721 | O10: 62168.71542 | P10: 63412.08973 | Q10: 64680.33152 | R10: 65973.93815 | S10: 67293.41692 | T10: 68639.28525 | U10: 70012.07096 | V10: 71412.31238 | W10: 72840.55863
A11: =Zadání!A8 -> Náklady na výrobu surovin OZE | B11: =Zadání!$B$36 -> 0.02 | C11: 0 | D11: =Zadání!B8 -> 808500 | E11: =D11*(1+$B$11) -> 824670 | F11: =E11*(1+$B$11) -> 841163.4 | G11: 857986.668 | H11: 875146.4014 | I11: 892649.3294 | J11: 910502.316 | K11: 928712.3623 | L11: 947286.6095 | M11: 966232.3417 | N11: 985556.9886 | O11: 1005268.128 | P11: 1025373.491 | Q11: 1045880.961 | R11: 1066798.58 | S11: 1088134.552 | T11: 1109897.243 | U11: 1132095.187 | V11: 1154737.091 | W11: 1177831.833
A12: =Zadání!A9 -> Mzdový náklad na provoz | B12: =Zadání!$B$36 -> 0.02 | C12: 0 | D12: =Zadání!B9 -> 650000 | E12: =D12*(1+$B$12) -> 663000 | F12: =E12*(1+$B$12) -> 676260 | G12: 689785.2 | H12: 703580.904 | I12: 717652.5221 | J12: 732005.5725 | K12: 746645.684 | L12: 761578.5977 | M12: 776810.1696 | N12: 792346.373 | O12: 808193.3005 | P12: 824357.1665 | Q12: 840844.3098 | R12: 857661.196 | S12: 874814.4199 | T12: 892310.7083 | U12: 910156.9225 | V12: 928360.0609 | W12: 946927.2621
A13: Pohonné hmoty | B13: =Zadání!$B$36 -> 0.02 | C13: 0 | D13: =Zadání!B10 -> 200000 | E13: =D13*(1+$B$13) -> 204000 | F13: =E13*(1+$B$13) -> 208080 | G13: 212241.6 | H13: 216486.432 | I13: 220816.1606 | J13: 225232.4839 | K13: 229737.1335 | L13: 234331.8762 | M13: 239018.5137 | N13: 243798.884 | O13: 248674.8617 | P13: 253648.3589 | Q13: 258721.3261 | R13: 263895.7526 | S13: 269173.6677 | T13: 274557.141 | U13: 280048.2838 | V13: 285649.2495 | W13: 291362.2345
A14: =Zadání!A11 -> Údržba, výměna oleje a provozní olej | B14: =Zadání!$B$36 -> 0.02 | C14: 0 | D14: =Zadání!B11 -> 20000 | E14: =D14*(1+$B$14) -> 20400 | F14: =E14*(1+$B$14) -> 20808 | G14: 21224.16 | H14: 21648.6432 | I14: 22081.61606 | J14: 22523.24839 | K14: 22973.71335 | L14: 23433.18762 | M14: 23901.85137 | N14: 24379.8884 | O14: 24867.48617 | P14: 25364.83589 | Q14: 25872.13261 | R14: 26389.57526 | S14: 26917.36677 | T14: 27455.7141 | U14: 28004.82838 | V14: 28564.92495 | W14: 29136.22345
A15: =Zadání!A12 -> Spotřeba el. Energie | B15: =Zadání!$B$36 -> 0.02 | C15: 0 | D15: =Zadání!B12 -> 35162 | E15: =D15*(1+$B$15) -> 35865.24 | F15: =E15*(1+$B$15) -> 36582.5448 | G15: 37314.1957 | H15: 38060.47961 | I15: 38821.6892 | J15: 39598.12299 | K15: 40390.08545 | L15: 41197.88715 | M15: 42021.8449 | N15: 42862.2818 | O15: 43719.52743 | P15: 44593.91798 | Q15: 45485.79634 | R15: 46395.51227 | S15: 47323.42251 | T15: 48269.89096 | U15: 49235.28878 | V15: 50219.99456 | W15: 51224.39445
A18: EBIT DA | C18: 0 | D18: =SUM(D3:D7)-SUM(D10:D15) -> 1209112.386 | E18: =SUM(E3:E7)-SUM(E10:E15) -> 1233294.634 | F18: =SUM(F3:F7)-SUM(F10:F15) -> 1257960.527 | G18: 1283119.737 | H18: 1308782.132 | I18: 1334957.775 | J18: 1361656.93 | K18: 1388890.069 | L18: 1416667.87 | M18: 1445001.228 | N18: 1473901.252 | O18: 1503379.277 | P18: 1533446.863 | Q18: 1564115.8 | R18: 1595398.116 | S18: 1627306.078 | T18: 1659852.2 | U18: 1693049.244 | V18: 1726910.229 | W18: 1761448.433
A19: Úroky | C19: =Úvěr!B3 -> 0 | D19: =Úvěr!C3 -> 521100 | E19: =Úvěr!D3 -> 501706.8948 | F19: =Úvěr!E3 -> 481731.9964 | G19: =Úvěr!F3 -> 461157.851 | H19: =Úvěr!G3 -> 439966.4814 | I19: =Úvěr!H3 -> 418139.3706 | J19: =Úvěr!I3 -> 395657.4465 | K19: =Úvěr!J3 -> 372501.0646 | L19: =Úvěr!K3 -> 348649.9913 | M19: =Úvěr!L3 -> 324083.3858 | N19: =Úvěr!M3 -> 298779.7822 | O19: =Úvěr!N3 -> 272717.0704 | P19: =Úvěr!O3 -> 245872.4773 | Q19: =Úvěr!P3 -> 218222.5464 | R19: =Úvěr!Q3 -> 189743.1176 | S19: =Úvěr!R3 -> 160409.3059 | T19: =Úvěr!S3 -> 130195.4798 | U19: =Úvěr!T3 -> 99075.23897 | V19: =Úvěr!U3 -> 67021.39091 | W19: =Úvěr!V3 -> 34005.92741
A20: Daňové odpisy | C20: 0 | D20: =Zadání!B5/(2*Zadání!B35-1) -> 494871.7949 | E20: =(2*Zadání!$B$5)/(2*Zadání!$B$35-1) -> 989743.5897 | F20: =(2*Zadání!$B$5)/(2*Zadání!$B$35-1) -> 989743.5897 | G20: =(2*Zadání!$B$5)/(2*Zadání!$B$35-1) -> 989743.5897 | H20: =(2*Zadání!$B$5)/(2*Zadání!$B$35-1) -> 989743.5897 | I20: =(2*Zadání!$B$5)/(2*Zadání!$B$35-1) -> 989743.5897 | J20: =(2*Zadání!$B$5)/(2*Zadání!$B$35-1) -> 989743.5897 | K20: =(2*Zadání!$B$5)/(2*Zadání!$B$35-1) -> 989743.5897 | L20: =(2*Zadání!$B$5)/(2*Zadání!$B$35-1) -> 989743.5897 | M20: =(2*Zadání!$B$5)/(2*Zadání!$B$35-1) -> 989743.5897 | N20: =(2*Zadání!$B$5)/(2*Zadání!$B$35-1) -> 989743.5897 | O20: =(2*Zadání!$B$5)/(2*Zadání!$B$35-1) -> 989743.5897 | P20: =(2*Zadání!$B$5)/(2*Zadání!$B$35-1) -> 989743.5897 | Q20: =(2*Zadání!$B$5)/(2*Zadání!$B$35-1) -> 989743.5897 | R20: =(2*Zadání!$B$5)/(2*Zadání!$B$35-1) -> 989743.5897 | S20: =(2*Zadání!$B$5)/(2*Zadání!$B$35-1) -> 989743.5897 | T20: =(2*Zadání!$B$5)/(2*Zadání!$B$35-1) -> 989743.5897 | U20: =(2*Zadání!$B$5)/(2*Zadání!$B$35-1) -> 989743.5897 | V20: =(2*Zadání!$B$5)/(2*Zadání!$B$35-1) -> 989743.5897 | W20: =(2*Zadání!$B$5)/(2*Zadání!$B$35-1) -> 989743.5897
A21: Hrubý daňový zisk | C21: =C18-C19-C20 -> 0 | D21: =D18-D19-D20 -> 193140.5915 | E21: -258155.8504 | F21: -213515.0593 | G21: -167781.7034 | H21: -120927.939 | I21: -72925.18557 | J21: -23744.10596 | K21: 26645.41448 | L21: 78274.28915 | M21: 131174.252 | N21: 185377.8802 | O21: 240918.6171 | P21: 297830.7957 | Q21: 356149.6639 | R21: 415911.4087 | S21: 477153.1827 | T21: 539913.1304 | U21: 604230.4152 | V21: 670145.2481 | W21: 737698.9162
A22: Daň z příjmu splatná | C22: =IF(C21>0,C21*Zadání!$B$34,0) -> 0 | D22: =IF(D21>0,D21*Zadání!$B$34,0) -> 36696.71239 | E22: =IF(E21>0,E21*Zadání!$B$34,0) -> 0 | F22: =IF(F21>0,F21*Zadání!$B$34,0) -> 0 | G22: =IF(G21>0,G21*Zadání!$B$34,0) -> 0 | H22: =IF(H21>0,H21*Zadání!$B$34,0) -> 0 | I22: =IF(I21>0,I21*Zadání!$B$34,0) -> 0 | J22: =IF(J21>0,J21*Zadání!$B$34,0) -> 0 | K22: =IF(K21>0,K21*Zadání!$B$34,0) -> 5062.628751 | L22: =IF(L21>0,L21*Zadání!$B$34,0) -> 14872.11494 | M22: =IF(M21>0,M21*Zadání!$B$34,0) -> 24923.10789 | N22: =IF(N21>0,N21*Zadání!$B$34,0) -> 35221.79725 | O22: =IF(O21>0,O21*Zadání!$B$34,0) -> 45774.53724 | P22: =IF(P21>0,P21*Zadání!$B$34,0) -> 56587.85119 | Q22: =IF(Q21>0,Q21*Zadání!$B$34,0) -> 67668.43614 | R22: =IF(R21>0,R21*Zadání!$B$34,0) -> 79023.16766 | S22: =IF(S21>0,S21*Zadání!$B$34,0) -> 90659.10472 | T22: =IF(T21>0,T21*Zadání!$B$34,0) -> 102583.4948 | U22: =IF(U21>0,U21*Zadání!$B$34,0) -> 114803.7789 | V22: =IF(V21>0,V21*Zadání!$B$34,0) -> 127327.5971 | W22: =IF(W21>0,W21*Zadání!$B$34,0) -> 140162.7941
A23: Daňová ztráta | C23: =IF(C21<0,C21*Zadání!$B$34,0) -> 0 | D23: =IF(D21<0,D21*Zadání!$B$34,0) -> 0 | E23: =IF(E21<0,E21*Zadání!$B$34,0) -> -49049.61157 | F23: =IF(F21<0,F21*Zadání!$B$34,0) -> -40567.86127 | G23: =IF(G21<0,G21*Zadání!$B$34,0) -> -31878.52365 | H23: =IF(H21<0,H21*Zadání!$B$34,0) -> -22976.30841 | I23: =IF(I21<0,I21*Zadání!$B$34,0) -> -13855.78526 | J23: =IF(J21<0,J21*Zadání!$B$34,0) -> -4511.380132 | K23: =IF(K21<0,K21*Zadání!$B$34,0) -> 0 | L23: =IF(L21<0,L21*Zadání!$B$34,0) -> 0 | M23: =IF(M21<0,M21*Zadání!$B$34,0) -> 0 | N23: =IF(N21<0,N21*Zadání!$B$34,0) -> 0 | O23: =IF(O21<0,O21*Zadání!$B$34,0) -> 0 | P23: =IF(P21<0,P21*Zadání!$B$34,0) -> 0 | Q23: =IF(Q21<0,Q21*Zadání!$B$34,0) -> 0 | R23: =IF(R21<0,R21*Zadání!$B$34,0) -> 0 | S23: =IF(S21<0,S21*Zadání!$B$34,0) -> 0 | T23: =IF(T21<0,T21*Zadání!$B$34,0) -> 0 | U23: =IF(U21<0,U21*Zadání!$B$34,0) -> 0 | V23: =IF(V21<0,V21*Zadání!$B$34,0) -> 0 | W23: =IF(W21<0,W21*Zadání!$B$34,0) -> 0
A24: Čistý daňový zisk | C24: =C21-C22-C23 -> 0 | D24: 156443.8791 | E24: =E21-E22-E23 -> -209106.2388 | F24: -172947.198 | G24: -135903.1798 | H24: -97951.63059 | I24: =I21-I22-I23 -> -59069.40031 | J24: -19232.72583 | K24: 21582.78573 | L24: 63402.17421 | M24: 106251.1442 | N24: 150156.083 | O24: 195144.0798 | P24: 241242.9445 | Q24: 288481.2277 | R24: 336888.2411 | S24: 386494.078 | T24: 437329.6356 | U24: 489426.6363 | V24: 542817.651 | W24: 597536.1221
A25: Daňové odpisy | C25: 0 | D25: =Zadání!B5/(2*Zadání!B35-1) -> 494871.7949 | E25: =(2*Zadání!$B$5)/(2*Zadání!$B$35-1) -> 989743.5897 | F25: =(2*Zadání!$B$5)/(2*Zadání!$B$35-1) -> 989743.5897 | G25: =(2*Zadání!$B$5)/(2*Zadání!$B$35-1) -> 989743.5897 | H25: =(2*Zadání!$B$5)/(2*Zadání!$B$35-1) -> 989743.5897 | I25: =(2*Zadání!$B$5)/(2*Zadání!$B$35-1) -> 989743.5897 | J25: =(2*Zadání!$B$5)/(2*Zadání!$B$35-1) -> 989743.5897 | K25: =(2*Zadání!$B$5)/(2*Zadání!$B$35-1) -> 989743.5897 | L25: =(2*Zadání!$B$5)/(2*Zadání!$B$35-1) -> 989743.5897 | M25: =(2*Zadání!$B$5)/(2*Zadání!$B$35-1) -> 989743.5897 | N25: =(2*Zadání!$B$5)/(2*Zadání!$B$35-1) -> 989743.5897 | O25: =(2*Zadání!$B$5)/(2*Zadání!$B$35-1) -> 989743.5897 | P25: =(2*Zadání!$B$5)/(2*Zadání!$B$35-1) -> 989743.5897 | Q25: =(2*Zadání!$B$5)/(2*Zadání!$B$35-1) -> 989743.5897 | R25: =(2*Zadání!$B$5)/(2*Zadání!$B$35-1) -> 989743.5897 | S25: =(2*Zadání!$B$5)/(2*Zadání!$B$35-1) -> 989743.5897 | T25: =(2*Zadání!$B$5)/(2*Zadání!$B$35-1) -> 989743.5897 | U25: =(2*Zadání!$B$5)/(2*Zadání!$B$35-1) -> 989743.5897 | V25: =(2*Zadání!$B$5)/(2*Zadání!$B$35-1) -> 989743.5897 | W25: =(2*Zadání!$B$5)/(2*Zadání!$B$35-1) -> 989743.5897
A26: Úmor | C26: =Úvěr!B4 -> 0 | D26: =Úvěr!C4 -> 646436.841 | E26: =Úvěr!D4 -> 665829.9462 | F26: =Úvěr!E4 -> 685804.8446 | G26: =Úvěr!F4 -> 706378.9899 | H26: =Úvěr!G4 -> 727570.3596 | I26: =Úvěr!H4 -> 749397.4704 | J26: =Úvěr!I4 -> 771879.3945 | K26: =Úvěr!J4 -> 795035.7763 | L26: =Úvěr!K4 -> 818886.8496 | M26: =Úvěr!L4 -> 843453.4551 | N26: =Úvěr!M4 -> 868757.0588 | O26: =Úvěr!N4 -> 894819.7705 | P26: =Úvěr!O4 -> 921664.3637 | Q26: =Úvěr!P4 -> 949314.2946 | R26: =Úvěr!Q4 -> 977793.7234 | S26: =Úvěr!R4 -> 1007127.535 | T26: =Úvěr!S4 -> 1037341.361 | U26: =Úvěr!T4 -> 1068461.602 | V26: =Úvěr!U4 -> 1100515.45 | W26: =Úvěr!V4 -> 1133530.914
A27: Investice | C27: =-Zadání!B5 -> -19300000 | D27: 0 | E27: 0 | F27: 0 | G27: 0 | H27: 0 | I27: 0 | J27: 0 | K27: 0 | L27: 0 | M27: 0 | N27: 0 | O27: 0 | P27: 0 | Q27: 0 | R27: 0 | S27: 0 | T27: 0 | U27: 0 | V27: 0 | W27: 0
A28: CFO | C28: =C24+C25-C26+C27 -> -19300000 | D28: =D24+D25-D26-D27 -> 4878.833056 | E28: 114807.4047 | F28: 130991.5471 | G28: 147461.42 | H28: 164221.5996 | I28: 181276.719 | J28: =J24+J25-J26-J27 -> 198631.4694 | K28: =K24+K25-K26-K27 -> 216290.5991 | L28: =L24+L25-L26-L27 -> 234258.9143 | M28: =M24+M25-M26-M27 -> 252541.2788 | N28: =N24+N25-N26-N27 -> 271142.614 | O28: 290067.899 | P28: =P24+P25-P26-P27 -> 309322.1706 | Q28: =Q24+Q25-Q26-Q27 -> 328910.5229 | R28: =R24+R25-R26-R27 -> 348838.1074 | S28: 369110.1327 | T28: 389731.8642 | U28: 410708.6241 | V28: 432045.7907 | W28: 453748.7983
A30: FCFF | C30: =C28 -> -19300000 | D30: =D28+(D19*(1-Zadání!$B$34))-D27+D26 -> 1073406.674 | E30: =E28+(E19*(1-Zadání!$B$34))-E27+E26 -> 1187019.936 | F30: =F28+(F19*(1-Zadání!$B$34))-F27+F26 -> 1206999.309 | G30: =G28+(G19*(1-Zadání!$B$34))-G27+G26 -> 1227378.269 | H30: =H28+(H19*(1-Zadání!$B$34))-H27+H26 -> 1248164.809 | I30: =I28+(I19*(1-Zadání!$B$34))-I27+I26 -> 1269367.08 | J30: =J28+(J19*(1-Zadání!$B$34))-J27+J26 -> 1290993.396 | K30: =K28+(K19*(1-Zadání!$B$34))-K27+K26 -> 1313052.238 | L30: =L28+(L19*(1-Zadání!$B$34))-L27+L26 -> 1335552.257 | M30: =M28+(M19*(1-Zadání!$B$34))-M27+M26 -> 1358502.276 | N30: =N28+(N19*(1-Zadání!$B$34))-N27+N26 -> 1381911.296 | O30: =O28+(O19*(1-Zadání!$B$34))-O27+O26 -> 1405788.497 | P30: =P28+(P19*(1-Zadání!$B$34))-P27+P26 -> 1430143.241 | Q30: =Q28+(Q19*(1-Zadání!$B$34))-Q27+Q26 -> 1454985.08 | R30: =R28+(R19*(1-Zadání!$B$34))-R27+R26 -> 1480323.756 | S30: =S28+(S19*(1-Zadání!$B$34))-S27+S26 -> 1506169.206 | T30: =T28+(T19*(1-Zadání!$B$34))-T27+T26 -> 1532531.564 | U30: =U28+(U19*(1-Zadání!$B$34))-U27+U26 -> 1559421.17 | V30: =V28+(V19*(1-Zadání!$B$34))-V27+V26 -> 1586848.567 | W30: =W28+(W19*(1-Zadání!$B$34))-W27+W26 -> 1614824.513
A31: FCFE | C31: =C30-(C19*(1-Zadání!$B$34))+Úvěr!B2 -> -1930000 | D31: =D30-(D19*(1-Zadání!$B$34))-'Cash flow'!D26 -> 4878.833056 | E31: =E30-(E19*(1-Zadání!$B$34))-'Cash flow'!E26 -> 114807.4047 | F31: =F30-(F19*(1-Zadání!$B$34))-'Cash flow'!F26 -> 130991.5471 | G31: =G30-(G19*(1-Zadání!$B$34))-'Cash flow'!G26 -> 147461.42 | H31: =H30-(H19*(1-Zadání!$B$34))-'Cash flow'!H26 -> 164221.5996 | I31: =I30-(I19*(1-Zadání!$B$34))-'Cash flow'!I26 -> 181276.719 | J31: =J30-(J19*(1-Zadání!$B$34))-'Cash flow'!J26 -> 198631.4694 | K31: =K30-(K19*(1-Zadání!$B$34))-'Cash flow'!K26 -> 216290.5991 | L31: =L30-(L19*(1-Zadání!$B$34))-'Cash flow'!L26 -> 234258.9143 | M31: =M30-(M19*(1-Zadání!$B$34))-'Cash flow'!M26 -> 252541.2788 | N31: =N30-(N19*(1-Zadání!$B$34))-'Cash flow'!N26 -> 271142.614 | O31: =O30-(O19*(1-Zadání!$B$34))-'Cash flow'!O26 -> 290067.899 | P31: =P30-(P19*(1-Zadání!$B$34))-'Cash flow'!P26 -> 309322.1706 | Q31: =Q30-(Q19*(1-Zadání!$B$34))-'Cash flow'!Q26 -> 328910.5229 | R31: =R30-(R19*(1-Zadání!$B$34))-'Cash flow'!R26 -> 348838.1074 | S31: =S30-(S19*(1-Zadání!$B$34))-'Cash flow'!S26 -> 369110.1327 | T31: =T30-(T19*(1-Zadání!$B$34))-'Cash flow'!T26 -> 389731.8642 | U31: =U30-(U19*(1-Zadání!$B$34))-'Cash flow'!U26 -> 410708.6241 | V31: =V30-(V19*(1-Zadání!$B$34))-'Cash flow'!V26 -> 432045.7907 | W31: =W30-(W19*(1-Zadání!$B$34))-'Cash flow'!W26 -> 453748.7983

Sheet CA ZB teplo
A1: Využití tepla [%] / Invest. | B1: 10000000 | C1: 10300000 | D1: 10600000 | E1: 10900000 | F1: 11200000 | G1: 11500000 | H1: 11800000 | I1: 12100000 | J1: 12400000 | K1: 12700000 | L1: 13000000 | M1: 13300000 | N1: 13600000 | O1: 13900000 | P1: 14200000 | Q1: 14500000 | R1: 14800000 | S1: 15100000 | T1: 15400000 | U1: 15700000 | V1: 16000000 | W1: 16300000 | X1: 16600000 | Y1: 16900000 | Z1: 17200000 | AA1: 17500000 | AB1: 17800000 | AC1: 18100000 | AD1: 18400000 | AE1: 18700000 | AF1: 19000000 | AG1: 19300000 | AH1: 19600000 | AI1: 19900000 | AJ1: 20200000 | AK1: 20500000 | AL1: 20800000 | AM1: 21100000 | AN1: 21400000 | AO1: 21700000 | AP1: 22000000 | AQ1: 22300000 | AR1: 22600000 | AS1: 22900000 | AT1: 23200000 | AU1: 23500000 | AV1: 23800000 | AW1: 24100000 | AX1: 24400000 | AY1: 24700000 | AZ1: 25000000
A2: 40 | B2: 895.1489825 | C2: 909.9785181 | D2: 924.8080537 | E2: 939.6376041 | F2: 954.4671397 | G2: 969.2966752 | H2: 984.126196 | I2: 998.9557316 | J2: 1013.785267 | K2: 1028.614803 | L2: 1043.444353 | M2: 1058.273889 | N2: 1073.103409 | O2: 1087.93296 | P2: 1102.762481 | Q2: 1117.592031 | R2: 1132.421552 | S2: 1147.251087 | T2: 1162.080623 | U2: 1176.910173 | V2: 1191.739694 | W2: 1206.56923 | X2: 1221.398765 | Y2: 1236.228316 | Z2: 1251.057836 | AA2: 1265.887372 | AB2: 1280.716908 | AC2: 1295.546458 | AD2: 1310.375993 | AE2: 1325.205529 | AF2: 1340.03505 | AG2: 1354.864585 | AH2: 1369.694136 | AI2: 1384.523657 | AJ2: 1399.353207 | AK2: 1414.182743 | AL2: 1429.012278 | AM2: 1443.841814 | AN2: 1458.671334 | AO2: 1473.500885 | AP2: 1488.330406 | AQ2: 1503.159956 | AR2: 1517.989492 | AS2: 1532.819012 | AT2: 1547.648563 | AU2: 1562.478098 | AV2: 1577.307619 | AW2: 1592.137155 | AX2: 1606.966705 | AY2: 1621.796226 | AZ2: 1636.625761
A3: 41 | B3: 864.7794951 | C3: 879.2473347 | D3: 893.7151743 | E3: 908.1830139 | F3: 922.6508535 | G3: 937.1186931 | H3: 951.5865327 | I3: 966.0543722 | J3: 980.5222118 | K3: 994.9900514 | L3: 1009.457891 | M3: 1023.925731 | N3: 1038.39357 | O3: 1052.86141 | P3: 1067.329249 | Q3: 1081.797089 | R3: 1096.264929 | S3: 1110.732768 | T3: 1125.200608 | U3: 1139.668447 | V3: 1154.136287 | W3: 1168.604126 | X3: 1183.071966 | Y3: 1197.539806 | Z3: 1212.007645 | AA3: 1226.475485 | AB3: 1240.943324 | AC3: 1255.411164 | AD3: 1269.879004 | AE3: 1284.346843 | AF3: 1298.814683 | AG3: 1313.282522 | AH3: 1327.750362 | AI3: 1342.218202 | AJ3: 1356.686041 | AK3: 1371.153881 | AL3: 1385.62172 | AM3: 1400.08956 | AN3: 1414.557399 | AO3: 1429.025239 | AP3: 1443.493079 | AQ3: 1457.960918 | AR3: 1472.428758 | AS3: 1486.896597 | AT3: 1501.364437 | AU3: 1515.832277 | AV3: 1530.300116 | AW3: 1544.767956 | AX3: 1559.235795 | AY3: 1573.703635 | AZ3: 1588.171474
A4: 42 | B4: 835.8561738 | C4: 849.979541 | D4: 864.1029083 | E4: 878.2262755 | F4: 892.3496427 | G4: 906.4730099 | H4: 920.5963771 | I4: 934.7197443 | J4: 948.8431116 | K4: 962.9664788 | L4: 977.089846 | M4: 991.2132132 | N4: 1005.33658 | O4: 1019.459948 | P4: 1033.583315 | Q4: 1047.706682 | R4: 1061.830049 | S4: 1075.953416 | T4: 1090.076784 | U4: 1104.200151 | V4: 1118.323518 | W4: 1132.446885 | X4: 1146.570253 | Y4: 1160.69362 | Z4: 1174.816987 | AA4: 1188.940354 | AB4: 1203.063721 | AC4: 1217.187089 | AD4: 1231.310456 | AE4: 1245.433823 | AF4: 1259.55719 | AG4: 1273.680558 | AH4: 1287.803925 | AI4: 1301.927292 | AJ4: 1316.050659 | AK4: 1330.174026 | AL4: 1344.297394 | AM4: 1358.420761 | AN4: 1372.544128 | AO4: 1386.667495 | AP4: 1400.790862 | AQ4: 1414.91423 | AR4: 1429.037597 | AS4: 1443.160964 | AT4: 1457.284331 | AU4: 1471.407699 | AV4: 1485.531066 | AW4: 1499.654433 | AX4: 1513.7778 | AY4: 1527.901167 | AZ4: 1542.024535
A5: 43 | B5: 808.2781233 | C5: 822.0730401 | D5: 835.8679569 | E5: 849.6628737 | F5: 863.4577905 | G5: 877.2527074 | H5: 891.0476242 | I5: 904.842541 | J5: 918.6374578 | K5: 932.4323746 | L5: 946.2272914 | M5: 960.0222082 | N5: 973.8171251 | O5: 987.6120419 | P5: 1001.406959 | Q5: 1015.201876 | R5: 1028.996792 | S5: 1042.791709 | T5: 1056.586626 | U5: 1070.381543 | V5: 1084.17646 | W5: 1097.971376 | X5: 1111.766293 | Y5: 1125.56121 | Z5: 1139.356127 | AA5: 1153.151044 | AB5: 1166.94596 | AC5: 1180.740877 | AD5: 1194.535794 | AE5: 1208.330711 | AF5: 1222.125628 | AG5: 1235.920545 | AH5: 1249.715461 | AI5: 1263.510378 | AJ5: 1277.305295 | AK5: 1291.100212 | AL5: 1304.895129 | AM5: 1318.690045 | AN5: 1332.484962 | AO5: 1346.279879 | AP5: 1360.074796 | AQ5: 1373.869713 | AR5: 1387.66463 | AS5: 1401.459546 | AT5: 1415.254463 | AU5: 1429.04938 | AV5: 1442.844297 | AW5: 1456.639214 | AX5: 1470.43413 | AY5: 1484.229047 | AZ5: 1498.023964
A6: 44 | B6: 781.9536205 | C6: 795.4350165 | D6: 808.9164124 | E6: 822.3978084 | F6: 835.8792044 | G6: 849.3606004 | H6: 862.8419963 | I6: 876.3233923 | J6: 889.8047883 | K6: 903.2861843 | L6: 916.7675803 | M6: 930.2489762 | N6: 943.7303722 | O6: 957.2117682 | P6: 970.6931642 | Q6: 984.1745602 | R6: 997.6559561 | S6: 1011.137352 | T6: 1024.618748 | U6: 1038.100144 | V6: 1051.58154 | W6: 1065.062936 | X6: 1078.544332 | Y6: 1092.025728 | Z6: 1105.507124 | AA6: 1118.98852 | AB6: 1132.469916 | AC6: 1145.951312 | AD6: 1159.432708 | AE6: 1172.914104 | AF6: 1186.3955 | AG6: 1199.876896 | AH6: 1213.358292 | AI6: 1226.839688 | AJ6: 1240.321084 | AK6: 1253.80248 | AL6: 1267.283876 | AM6: 1280.765272 | AN6: 1294.246668 | AO6: 1307.728064 | AP6: 1321.20946 | AQ6: 1334.690856 | AR6: 1348.172252 | AS6: 1361.653648 | AT6: 1375.135044 | AU6: 1388.61644 | AV6: 1402.097835 | AW6: 1415.579231 | AX6: 1429.060627 | AY6: 1442.542023 | AZ6: 1456.023419
A7: 45 | B7: 756.7990956 | C7: 769.980905 | D7: 783.1627144 | E7: 796.3445238 | F7: 809.5263332 | G7: 822.7081426 | H7: 835.889952 | I7: 849.0717614 | J7: 862.2535708 | K7: 875.4353802 | L7: 888.6171896 | M7: 901.798999 | N7: 914.9808084 | O7: 928.1626178 | P7: 941.3444272 | Q7: 954.5262366 | R7: 967.708046 | S7: 980.8898554 | T7: 994.0716648 | U7: 1007.253474 | V7: 1020.435284 | W7: 1033.617093 | X7: 1046.798902 | Y7: 1059.980712 | Z7: 1073.162521 | AA7: 1086.344331 | AB7: 1099.52614 | AC7: 1112.707949 | AD7: 1125.889759 | AE7: 1139.071568 | AF7: 1152.253378 | AG7: 1165.435187 | AH7: 1178.616996 | AI7: 1191.798806 | AJ7: 1204.980615 | AK7: 1218.162425 | AL7: 1231.344234 | AM7: 1244.526043 | AN7: 1257.707853 | AO7: 1270.889662 | AP7: 1284.071472 | AQ7: 1297.253281 | AR7: 1310.43509 | AS7: 1323.6169 | AT7: 1336.798709 | AU7: 1349.980519 | AV7: 1363.162328 | AW7: 1376.344137 | AX7: 1389.525947 | AY7: 1402.707756 | AZ7: 1415.889566
A8: 46 | B8: 732.7382457 | C8: 745.633494 | D8: 758.5287423 | E8: 771.4239907 | F8: 784.319239 | G8: 797.2144873 | H8: 810.1097356 | I8: 823.004984 | J8: 835.9002323 | K8: 848.7954806 | L8: 861.6907289 | M8: 874.5859773 | N8: 887.4812256 | O8: 900.3764739 | P8: 913.2717223 | Q8: 926.1669706 | R8: 939.0622189 | S8: 951.9574672 | T8: 964.8527156 | U8: 977.7479639 | V8: 990.6432122 | W8: 1003.538461 | X8: 1016.433709 | Y8: 1029.328957 | Z8: 1042.224206 | AA8: 1055.119454 | AB8: 1068.014702 | AC8: 1080.909951 | AD8: 1093.805199 | AE8: 1106.700447 | AF8: 1119.595695 | AG8: 1132.490944 | AH8: 1145.386192 | AI8: 1158.28144 | AJ8: 1171.176689 | AK8: 1184.071937 | AL8: 1196.967185 | AM8: 1209.862434 | AN8: 1222.757682 | AO8: 1235.65293 | AP8: 1248.548179 | AQ8: 1261.443427 | AR8: 1274.338675 | AS8: 1287.233924 | AT8: 1300.129172 | AU8: 1313.02442 | AV8: 1325.919669 | AW8: 1338.814917 | AX8: 1351.710165 | AY8: 1364.605414 | AZ8: 1377.500662
A9: 47 | B9: 709.7012617 | C9: 722.3221431 | D9: 734.9430244 | E9: 747.5639057 | F9: 760.1847871 | G9: 772.8056684 | H9: 785.4265498 | I9: 798.0474311 | J9: 810.6683125 | K9: 823.2891938 | L9: 835.9100751 | M9: 848.5309565 | N9: 861.1518378 | O9: 873.7727192 | P9: 886.3936005 | Q9: 899.0144818 | R9: 911.6353632 | S9: 924.2562445 | T9: 936.8771259 | U9: 949.4980072 | V9: 962.1188886 | W9: 974.7397699 | X9: 987.3606512 | Y9: 999.9815326 | Z9: 1012.602414 | AA9: 1025.223295 | AB9: 1037.844177 | AC9: 1050.465058 | AD9: 1063.085939 | AE9: 1075.706821 | AF9: 1088.327702 | AG9: 1100.948583 | AH9: 1113.569465 | AI9: 1126.190346 | AJ9: 1138.811227 | AK9: 1151.432109 | AL9: 1164.05299 | AM9: 1176.673871 | AN9: 1189.294753 | AO9: 1201.915634 | AP9: 1214.536515 | AQ9: 1227.157397 | AR9: 1239.778278 | AS9: 1252.399159 | AT9: 1265.020041 | AU9: 1277.640922 | AV9: 1290.261803 | AW9: 1302.882685 | AX9: 1315.503566 | AY9: 1328.124447 | AZ9: 1340.745329
A10: 48 | B10: 687.6241521 | C10: 699.9820984 | D10: 712.3400447 | E10: 724.697991 | F10: 737.0559374 | G10: 749.4138837 | H10: 761.77183 | I10: 774.1297763 | J10: 786.4877226 | K10: 798.8456689 | L10: 811.2036152 | M10: 823.5615616 | N10: 835.9195079 | O10: 848.2774542 | P10: 860.6354005 | Q10: 872.9933468 | R10: 885.3512931 | S10: 897.7092394 | T10: 910.0671857 | U10: 922.4251321 | V10: 934.7830784 | W10: 947.1410247 | X10: 959.498971 | Y10: 971.8569173 | Z10: 984.2148636 | AA10: 996.5728099 | AB10: 1008.930756 | AC10: 1021.288703 | AD10: 1033.646649 | AE10: 1046.004595 | AF10: 1058.362542 | AG10: 1070.720488 | AH10: 1083.078434 | AI10: 1095.43638 | AJ10: 1107.794327 | AK10: 1120.152273 | AL10: 1132.510219 | AM10: 1144.868166 | AN10: 1157.226112 | AO10: 1169.584058 | AP10: 1181.942005 | AQ10: 1194.299951 | AR10: 1206.657897 | AS10: 1219.015844 | AT10: 1231.37379 | AU10: 1243.731736 | AV10: 1256.089683 | AW10: 1268.447629 | AX10: 1280.805575 | AY10: 1293.163521 | AZ10: 1305.521468
A11: 49 | B11: 666.448149 | C11: 678.5538923 | D11: 690.6596357 | E11: 702.765379 | F11: 714.8711223 | G11: 726.9768656 | H11: 739.082609 | I11: 751.1883523 | J11: 763.2940956 | K11: 775.3998389 | L11: 787.5055823 | M11: 799.6113256 | N11: 811.7170689 | O11: 823.8228123 | P11: 835.9285556 | Q11: 848.0342989 | R11: 860.1400422 | S11: 872.2457856 | T11: 884.3515289 | U11: 896.4572722 | V11: 908.5630156 | W11: 920.6687589 | X11: 932.7745022 | Y11: 944.8802455 | Z11: 956.9859889 | AA11: 969.0917322 | AB11: 981.1974755 | AC11: 993.3032188 | AD11: 1005.408962 | AE11: 1017.514706 | AF11: 1029.620449 | AG11: 1041.726192 | AH11: 1053.831935 | AI11: 1065.937679 | AJ11: 1078.043422 | AK11: 1090.149165 | AL11: 1102.254909 | AM11: 1114.360652 | AN11: 1126.466395 | AO11: 1138.572139 | AP11: 1150.677882 | AQ11: 1162.783625 | AR11: 1174.889369 | AS11: 1186.995112 | AT11: 1199.100855 | AU11: 1211.206599 | AV11: 1223.312342 | AW11: 1235.418085 | AX11: 1247.523829 | AY11: 1259.629572 | AZ11: 1271.735315
A12: 50 | B12: 646.119186 | C12: 657.9828145 | D12: 669.8464429 | E12: 681.7100714 | F12: 693.5736999 | G12: 705.4373283 | H12: 717.3009568 | I12: 729.1645852 | J12: 741.0282137 | K12: 752.8918422 | L12: 764.7554706 | M12: 776.6190991 | N12: 788.4827276 | O12: 800.346356 | P12: 812.2099845 | Q12: 824.0736129 | R12: 835.9372414 | S12: 847.8008699 | T12: 859.6644983 | U12: 871.5281268 | V12: 883.3917552 | W12: 895.2553837 | X12: 907.1190122 | Y12: 918.9826406 | Z12: 930.8462691 | AA12: 942.7098975 | AB12: 954.573526 | AC12: 966.4371545 | AD12: 978.3007829 | AE12: 990.1644114 | AF12: 1002.02804 | AG12: 1013.891668 | AH12: 1025.755297 | AI12: 1037.618925 | AJ12: 1049.482554 | AK12: 1061.346182 | AL12: 1073.209811 | AM12: 1085.073439 | AN12: 1096.937068 | AO12: 1108.800696 | AP12: 1120.664324 | AQ12: 1132.527953 | AR12: 1144.391581 | AS12: 1156.25521 | AT12: 1168.118838 | AU12: 1179.982467 | AV12: 1191.846095 | AW12: 1203.709724 | AX12: 1215.573352 | AY12: 1227.436981 | AZ12: 1239.300609
A13: 51 | B13: 626.5874373 | C13: 638.2184456 | D13: 649.8494539 | E13: 661.4804622 | F13: 673.1114705 | G13: 684.7424787 | H13: 696.373487 | I13: 708.0044953 | J13: 719.6355036 | K13: 731.2665119 | L13: 742.8975202 | M13: 754.5285285 | N13: 766.1595368 | O13: 777.7905451 | P13: 789.4215534 | Q13: 801.0525617 | R13: 812.68357 | S13: 824.3145783 | T13: 835.9455866 | U13: 847.5765949 | V13: 859.2076032 | W13: 870.8386115 | X13: 882.4696198 | Y13: 894.1006281 | Z13: 905.7316364 | AA13: 917.3626447 | AB13: 928.993653 | AC13: 940.6246612 | AD13: 952.2556695 | AE13: 963.8866778 | AF13: 975.5176861 | AG13: 987.1486944 | AH13: 998.7797027 | AI13: 1010.410711 | AJ13: 1022.041719 | AK13: 1033.672728 | AL13: 1045.303736 | AM13: 1056.934744 | AN13: 1068.565752 | AO13: 1080.196761 | AP13: 1091.827769 | AQ13: 1103.458777 | AR13: 1115.089786 | AS13: 1126.720794 | AT13: 1138.351802 | AU13: 1149.982811 | AV13: 1161.613819 | AW13: 1173.244827 | AX13: 1184.875835 | AY13: 1196.506844 | AZ13: 1208.137852
A14: 52 | B14: 607.8069096 | C14: 619.2142447 | D14: 630.6215797 | E14: 642.0289148 | F14: 653.4362499 | G14: 664.8435849 | H14: 676.25092 | I14: 687.658255 | J14: 699.0655901 | K14: 710.4729252 | L14: 721.8802602 | M14: 733.2875953 | N14: 744.6949303 | O14: 756.1022654 | P14: 767.5096005 | Q14: 778.9169355 | R14: 790.3242706 | S14: 801.7316056 | T14: 813.1389407 | U14: 824.5462758 | V14: 835.9536108 | W14: 847.3609459 | X14: 858.7682809 | Y14: 870.175616 | Z14: 881.582951 | AA14: 892.9902861 | AB14: 904.3976212 | AC14: 915.8049562 | AD14: 927.2122913 | AE14: 938.6196263 | AF14: 950.0269614 | AG14: 961.4342965 | AH14: 972.8416315 | AI14: 984.2489666 | AJ14: 995.6563016 | AK14: 1007.063637 | AL14: 1018.470972 | AM14: 1029.878307 | AN14: 1041.285642 | AO14: 1052.692977 | AP14: 1064.100312 | AQ14: 1075.507647 | AR14: 1086.914982 | AS14: 1098.322317 | AT14: 1109.729652 | AU14: 1121.136987 | AV14: 1132.544322 | AW14: 1143.951657 | AX14: 1155.358992 | AY14: 1166.766328 | AZ14: 1178.173663
A15: 53 | B15: 589.7350811 | C15: 600.9271835 | D15: 612.1192858 | E15: 623.3113881 | F15: 634.5034904 | G15: 645.6955928 | H15: 656.8876951 | I15: 668.0797974 | J15: 679.2718997 | K15: 690.464002 | L15: 701.6561044 | M15: 712.8482067 | N15: 724.040309 | O15: 735.2324113 | P15: 746.4245137 | Q15: 757.616616 | R15: 768.8087183 | S15: 780.0008206 | T15: 791.1929229 | U15: 802.3850253 | V15: 813.5771276 | W15: 824.7692299 | X15: 835.9613322 | Y15: 847.1534346 | Z15: 858.3455369 | AA15: 869.5376392 | AB15: 880.7297415 | AC15: 891.9218438 | AD15: 903.1139462 | AE15: 914.3060485 | AF15: 925.4981508 | AG15: 936.6902531 | AH15: 947.8823555 | AI15: 959.0744578 | AJ15: 970.2665601 | AK15: 981.4586624 | AL15: 992.6507647 | AM15: 1003.842867 | AN15: 1015.034969 | AO15: 1026.227072 | AP15: 1037.419174 | AQ15: 1048.611276 | AR15: 1059.803379 | AS15: 1070.995481 | AT15: 1082.187583 | AU15: 1093.379686 | AV15: 1104.571788 | AW15: 1115.76389 | AX15: 1126.955993 | AY15: 1138.148095 | AZ15: 1149.340197
A16: 54 | B16: 572.3325796 | C16: 583.3174208 | D16: 594.302262 | E16: 605.2871031 | F16: 616.2719443 | G16: 627.2567855 | H16: 638.2416267 | I16: 649.2264678 | J16: 660.211309 | K16: 671.1961502 | L16: 682.1809913 | M16: 693.1658325 | N16: 704.1506737 | O16: 715.1355148 | P16: 726.120356 | Q16: 737.1051972 | R16: 748.0900383 | S16: 759.0748795 | T16: 770.0597207 | U16: 781.0445618 | V16: 792.029403 | W16: 803.0142442 | X16: 813.9990853 | Y16: 824.9839265 | Z16: 835.9687677 | AA16: 846.9536088 | AB16: 857.93845 | AC16: 868.9232912 | AD16: 879.9081323 | AE16: 890.8929735 | AF16: 901.8778147 | AG16: 912.8626558 | AH16: 923.847497 | AI16: 934.8323382 | AJ16: 945.8171794 | AK16: 956.8020205 | AL16: 967.7868617 | AM16: 978.7717029 | AN16: 989.756544 | AO16: 1000.741385 | AP16: 1011.726226 | AQ16: 1022.711068 | AR16: 1033.695909 | AS16: 1044.68075 | AT16: 1055.665591 | AU16: 1066.650432 | AV16: 1077.635273 | AW16: 1088.620115 | AX16: 1099.604956 | AY16: 1110.589797 | AZ16: 1121.574638
A17: 55 | B17: 555.5628964 | C17: 566.3480132 | D17: 577.1331299 | E17: 587.9182467 | F17: 598.7033635 | G17: 609.4884803 | H17: 620.2735971 | I17: 631.0587139 | J17: 641.8438306 | K17: 652.6289474 | L17: 663.4140642 | M17: 674.199181 | N17: 684.9842978 | O17: 695.7694146 | P17: 706.5545313 | Q17: 717.3396481 | R17: 728.1247649 | S17: 738.9098817 | T17: 749.6949985 | U17: 760.4801153 | V17: 771.265232 | W17: 782.0503488 | X17: 792.8354656 | Y17: 803.6205824 | Z17: 814.4056992 | AA17: 825.190816 | AB17: 835.9759327 | AC17: 846.7610495 | AD17: 857.5461663 | AE17: 868.3312831 | AF17: 879.1163999 | AG17: 889.9015167 | AH17: 900.6866334 | AI17: 911.4717502 | AJ17: 922.256867 | AK17: 933.0419838 | AL17: 943.8271006 | AM17: 954.6122173 | AN17: 965.3973341 | AO17: 976.1824509 | AP17: 986.9675677 | AQ17: 997.7526845 | AR17: 1008.537801 | AS17: 1019.322918 | AT17: 1030.108035 | AU17: 1040.893152 | AV17: 1051.678268 | AW17: 1062.463385 | AX17: 1073.248502 | AY17: 1084.033619 | AZ17: 1094.818736
A18: 56 | B18: 539.3921304 | C18: 549.9846558 | D18: 560.5771812 | E18: 571.1697066 | F18: 581.762232 | G18: 592.3547574 | H18: 602.9472828 | I18: 613.5398083 | J18: 624.1323337 | K18: 634.7248591 | L18: 645.3173845 | M18: 655.9099099 | N18: 666.5024353 | O18: 677.0949607 | P18: 687.6874861 | Q18: 698.2800115 | R18: 708.872537 | S18: 719.4650624 | T18: 730.0575878 | U18: 740.6501132 | V18: 751.2426386 | W18: 761.835164 | X18: 772.4276894 | Y18: 783.0202148 | Z18: 793.6127403 | AA18: 804.2052657 | AB18: 814.7977911 | AC18: 825.3903165 | AD18: 835.9828419 | AE18: 846.5753673 | AF18: 857.1678927 | AG18: 867.7604181 | AH18: 878.3529436 | AI18: 888.945469 | AJ18: 899.5379944 | AK18: 910.1305198 | AL18: 920.7230452 | AM18: 931.3155706 | AN18: 941.908096 | AO18: 952.5006214 | AP18: 963.0931468 | AQ18: 973.6856723 | AR18: 984.2781977 | AS18: 994.8707231 | AT18: 1005.463248 | AU18: 1016.055774 | AV18: 1026.648299 | AW18: 1037.240825 | AX18: 1047.83335 | AY18: 1058.425876 | AZ18: 1069.018401
A19: 57 | B19: 523.7887597 | C19: 534.1954513 | D19: 544.6021429 | E19: 555.0088346 | F19: 565.4155262 | G19: 575.8222178 | H19: 586.2289095 | I19: 596.6356011 | J19: 607.0422927 | K19: 617.4489844 | L19: 627.855676 | M19: 638.2623676 | N19: 648.6690593 | O19: 659.0757509 | P19: 669.4824425 | Q19: 679.8891342 | R19: 690.2958258 | S19: 700.7025174 | T19: 711.1092091 | U19: 721.5159007 | V19: 731.9225923 | W19: 742.3292839 | X19: 752.7359756 | Y19: 763.1426672 | Z19: 773.5493588 | AA19: 783.9560505 | AB19: 794.3627421 | AC19: 804.7694337 | AD19: 815.1761254 | AE19: 825.582817 | AF19: 835.9895086 | AG19: 846.3962003 | AH19: 856.8028919 | AI19: 867.2095835 | AJ19: 877.6162752 | AK19: 888.0229668 | AL19: 898.4296584 | AM19: 908.8363501 | AN19: 919.2430417 | AO19: 929.6497333 | AP19: 940.056425 | AQ19: 950.4631166 | AR19: 960.8698082 | AS19: 971.2764999 | AT19: 981.6831915 | AU19: 992.0898831 | AV19: 1002.496575 | AW19: 1012.903266 | AX19: 1023.309958 | AY19: 1033.71665 | AZ19: 1044.123341
A20: 58 | B20: 508.7234362 | C20: 518.9507021 | D20: 529.1779681 | E20: 539.405234 | F20: 549.6324999 | G20: 559.8597658 | H20: 570.0870317 | I20: 580.3142976 | J20: 590.5415635 | K20: 600.7688295 | L20: 610.9960954 | M20: 621.2233613 | N20: 631.4506272 | O20: 641.6778931 | P20: 651.905159 | Q20: 662.1324249 | R20: 672.3596909 | S20: 682.5869568 | T20: 692.8142227 | U20: 703.0414886 | V20: 713.2687545 | W20: 723.4960204 | X20: 733.7232863 | Y20: 743.9505523 | Z20: 754.1778182 | AA20: 764.4050841 | AB20: 774.63235 | AC20: 784.8596159 | AD20: 795.0868818 | AE20: 805.3141478 | AF20: 815.5414137 | AG20: 825.7686796 | AH20: 835.9959455 | AI20: 846.2232114 | AJ20: 856.4504773 | AK20: 866.6777432 | AL20: 876.9050092 | AM20: 887.1322751 | AN20: 897.359541 | AO20: 907.5868069 | AP20: 917.8140728 | AQ20: 928.0413387 | AR20: 938.2686046 | AS20: 948.4958706 | AT20: 958.7231365 | AU20: 968.9504024 | AV20: 979.1776683 | AW20: 989.4049342 | AX20: 999.6322001 | AY20: 1009.859466 | AZ20: 1020.086732
A21: 59 | B21: 494.1688017 | C21: 504.2227241 | D21: 514.2766466 | E21: 524.330569 | F21: 534.3844914 | G21: 544.4384138 | H21: 554.4923363 | I21: 564.5462587 | J21: 574.6001811 | K21: 584.6541035 | L21: 594.708026 | M21: 604.7619484 | N21: 614.8158708 | O21: 624.8697932 | P21: 634.9237157 | Q21: 644.9776381 | R21: 655.0315605 | S21: 665.0854829 | T21: 675.1394054 | U21: 685.1933278 | V21: 695.2472502 | W21: 705.3011726 | X21: 715.3550951 | Y21: 725.4090175 | Z21: 735.4629399 | AA21: 745.5168623 | AB21: 755.5707848 | AC21: 765.6247072 | AD21: 775.6786296 | AE21: 785.732552 | AF21: 795.7864745 | AG21: 805.8403969 | AH21: 815.8943193 | AI21: 825.9482417 | AJ21: 836.0021642 | AK21: 846.0560866 | AL21: 856.110009 | AM21: 866.1639314 | AN21: 876.2178539 | AO21: 886.2717763 | AP21: 896.3256987 | AQ21: 906.3796211 | AR21: 916.4335436 | AS21: 926.487466 | AT21: 936.5413884 | AU21: 946.5953108 | AV21: 956.6492333 | AW21: 966.7031557 | AX21: 976.7570781 | AY21: 986.8110005 | AZ21: 996.8649229
A22: 60 | B22: 480.0993217 | C22: 489.9856787 | D22: 499.8720358 | E22: 509.7583928 | F22: 519.6447499 | G22: 529.5311069 | H22: 539.417464 | I22: 549.303821 | J22: 559.1901781 | K22: 569.0765351 | L22: 578.9628922 | M22: 588.8492492 | N22: 598.7356063 | O22: 608.6219633 | P22: 618.5083204 | Q22: 628.3946774 | R22: 638.2810345 | S22: 648.1673915 | T22: 658.0537486 | U22: 667.9401057 | V22: 677.8264627 | W22: 687.7128198 | X22: 697.5991768 | Y22: 707.4855339 | Z22: 717.3718909 | AA22: 727.258248 | AB22: 737.144605 | AC22: 747.0309621 | AD22: 756.9173191 | AE22: 766.8036762 | AF22: 776.6900332 | AG22: 786.5763903 | AH22: 796.4627473 | AI22: 806.3491044 | AJ22: 816.2354614 | AK22: 826.1218185 | AL22: 836.0081755 | AM22: 845.8945326 | AN22: 855.7808896 | AO22: 865.6672467 | AP22: 875.5536037 | AQ22: 885.4399608 | AR22: 895.3263178 | AS22: 905.2126749 | AT22: 915.0990319 | AU22: 924.985389 | AV22: 934.871746 | AW22: 944.7581031 | AX22: 954.6444601 | AY22: 964.5308172 | AZ22: 974.4171742
A23: 61 | B23: 466.4911361 | C23: 476.2154217 | D23: 485.9397073 | E23: 495.663993 | F23: 505.3882786 | G23: 515.1125642 | H23: 524.8368498 | I23: 534.5611354 | J23: 544.2854211 | K23: 554.0097067 | L23: 563.7339923 | M23: 573.4582779 | N23: 583.1825636 | O23: 592.9068492 | P23: 602.6311348 | Q23: 612.3554204 | R23: 622.0797061 | S23: 631.8039917 | T23: 641.5282773 | U23: 651.2525629 | V23: 660.9768486 | W23: 670.7011342 | X23: 680.4254198 | Y23: 690.1497054 | Z23: 699.8739911 | AA23: 709.5982767 | AB23: 719.3225623 | AC23: 729.0468479 | AD23: 738.7711336 | AE23: 748.4954192 | AF23: 758.2197048 | AG23: 767.9439904 | AH23: 777.668276 | AI23: 787.3925617 | AJ23: 797.1168473 | AK23: 806.8411329 | AL23: 816.5654185 | AM23: 826.2897042 | AN23: 836.0139898 | AO23: 845.7382754 | AP23: 855.462561 | AQ23: 865.1868467 | AR23: 874.9111323 | AS23: 884.6354179 | AT23: 894.3597035 | AU23: 904.0839892 | AV23: 913.8082748 | AW23: 923.5325604 | AX23: 933.256846 | AY23: 942.9811317 | AZ23: 952.7054173
A24: 62 | B24: 453.3219242 | C24: 462.8893665 | D24: 472.4568088 | E24: 482.0242511 | F24: 491.5916934 | G24: 501.1591357 | H24: 510.7265781 | I24: 520.2940204 | J24: 529.8614627 | K24: 539.428905 | L24: 548.9963473 | M24: 558.5637896 | N24: 568.1312319 | O24: 577.6986742 | P24: 587.2661165 | Q24: 596.8335588 | R24: 606.4010011 | S24: 615.9684434 | T24: 625.5358857 | U24: 635.103328 | V24: 644.6707704 | W24: 654.2382127 | X24: 663.805655 | Y24: 673.3730973 | Z24: 682.9405396 | AA24: 692.5079819 | AB24: 702.0754242 | AC24: 711.6428665 | AD24: 721.2103088 | AE24: 730.7777511 | AF24: 740.3451934 | AG24: 749.9126357 | AH24: 759.480078 | AI24: 769.0475204 | AJ24: 778.6149627 | AK24: 788.182405 | AL24: 797.7498473 | AM24: 807.3172896 | AN24: 816.8847319 | AO24: 826.4521742 | AP24: 836.0196165 | AQ24: 845.5870588 | AR24: 855.1545011 | AS24: 864.7219434 | AT24: 874.2893857 | AU24: 883.856828 | AV24: 893.4242704 | AW24: 902.9917127 | AX24: 912.559155 | AY24: 922.1265973 | AZ24: 931.6940396
A25: 63 | B25: 440.5707826 | C25: 449.9863607 | D25: 459.4019388 | E25: 468.817517 | F25: 478.2330951 | G25: 487.6486733 | H25: 497.0642514 | I25: 506.4798296 | J25: 515.8954077 | K25: 525.3109858 | L25: 534.726564 | M25: 544.1421421 | N25: 553.5577203 | O25: 562.9732984 | P25: 572.3888766 | Q25: 581.8044547 | R25: 591.2200329 | S25: 600.635611 | T25: 610.0511891 | U25: 619.4667673 | V25: 628.8823454 | W25: 638.2979236 | X25: 647.7135017 | Y25: 657.1290799 | Z25: 666.544658 | AA25: 675.9602361 | AB25: 685.3758143 | AC25: 694.7913924 | AD25: 704.2069706 | AE25: 713.6225487 | AF25: 723.0381269 | AG25: 732.453705 | AH25: 741.8692832 | AI25: 751.2848613 | AJ25: 760.7004394 | AK25: 770.1160176 | AL25: 779.5315957 | AM25: 788.9471739 | AN25: 798.362752 | AO25: 807.7783302 | AP25: 817.1939083 | AQ25: 826.6094865 | AR25: 836.0250646 | AS25: 845.4406427 | AT25: 854.8562209 | AU25: 864.271799 | AV25: 873.6873772 | AW25: 883.1029553 | AX25: 892.5185335 | AY25: 901.9341116 | AZ25: 911.3496897
A26: 64 | B26: 428.2181141 | C26: 437.4865738 | D26: 446.7550335 | E26: 456.0234933 | F26: 465.291953 | G26: 474.5604128 | H26: 483.8288725 | I26: 493.0973322 | J26: 502.365792 | K26: 511.6342517 | L26: 520.9027114 | M26: 530.1711712 | N26: 539.4396309 | O26: 548.7080906 | P26: 557.9765504 | Q26: 567.2450101 | R26: 576.5134698 | S26: 585.7819296 | T26: 595.0503893 | U26: 604.318849 | V26: 613.5873088 | W26: 622.8557685 | X26: 632.1242283 | Y26: 641.392688 | Z26: 650.6611477 | AA26: 659.9296075 | AB26: 669.1980672 | AC26: 678.4665269 | AD26: 687.7349867 | AE26: 697.0034464 | AF26: 706.2719061 | AG26: 715.5403659 | AH26: 724.8088256 | AI26: 734.0772853 | AJ26: 743.3457451 | AK26: 752.6142048 | AL26: 761.8826645 | AM26: 771.1511243 | AN26: 780.419584 | AO26: 789.6880438 | AP26: 798.9565035 | AQ26: 808.2249632 | AR26: 817.493423 | AS26: 826.7618827 | AT26: 836.0303424 | AU26: 845.2988022 | AV26: 854.5672619 | AW26: 863.8357216 | AX26: 873.1041814 | AY26: 882.3726411 | AZ26: 891.6411008
A27: 65 | B27: 416.2455277 | C27: 425.3713958 | D27: 434.4972638 | E27: 443.6231318 | F27: 452.7489999 | G27: 461.8748679 | H27: 471.000736 | I27: 480.126604 | J27: 489.2524721 | K27: 498.3783401 | L27: 507.5042082 | M27: 516.6300762 | N27: 525.7559443 | O27: 534.8818123 | P27: 544.0076804 | Q27: 553.1335484 | R27: 562.2594165 | S27: 571.3852845 | T27: 580.5111526 | U27: 589.6370206 | V27: 598.7628886 | W27: 607.8887567 | X27: 617.0146247 | Y27: 626.1404928 | Z27: 635.2663608 | AA27: 644.3922289 | AB27: 653.5180969 | AC27: 662.643965 | AD27: 671.769833 | AE27: 680.8957011 | AF27: 690.0215691 | AG27: 699.1474372 | AH27: 708.2733052 | AI27: 717.3991733 | AJ27: 726.5250413 | AK27: 735.6509094 | AL27: 744.7767774 | AM27: 753.9026454 | AN27: 763.0285135 | AO27: 772.1543815 | AP27: 781.2802496 | AQ27: 790.4061176 | AR27: 799.5319857 | AS27: 808.6578537 | AT27: 817.7837218 | AU27: 826.9095898 | AV27: 836.0354579 | AW27: 845.1613259 | AX27: 854.287194 | AY27: 863.413062 | AZ27: 872.5389301
A28: 66 | B28: 404.635747 | C28: 413.6233443 | D28: 422.6109416 | E28: 431.5985389 | F28: 440.5861363 | G28: 449.5737336 | H28: 458.5613309 | I28: 467.5489282 | J28: 476.5365255 | K28: 485.5241229 | L28: 494.5117202 | M28: 503.4993175 | N28: 512.4869148 | O28: 521.4745121 | P28: 530.4621094 | Q28: 539.4497068 | R28: 548.4373041 | S28: 557.4249014 | T28: 566.4124987 | U28: 575.400096 | V28: 584.3876934 | W28: 593.3752907 | X28: 602.362888 | Y28: 611.3504853 | Z28: 620.3380826 | AA28: 629.32568 | AB28: 638.3132773 | AC28: 647.3008746 | AD28: 656.2884719 | AE28: 665.2760692 | AF28: 674.2636666 | AG28: 683.2512639 | AH28: 692.2388612 | AI28: 701.2264585 | AJ28: 710.2140558 | AK28: 719.2016532 | AL28: 728.1892505 | AM28: 737.1768478 | AN28: 746.1644451 | AO28: 755.1520424 | AP28: 764.1396397 | AQ28: 773.1272371 | AR28: 782.1148344 | AS28: 791.1024317 | AT28: 800.090029 | AU28: 809.0776263 | AV28: 818.0652237 | AW28: 827.052821 | AX28: 836.0404183 | AY28: 845.0280156 | AZ28: 854.0156129
A29: 67 | B29: 393.3725269 | C29: 402.225981 | D29: 411.079435 | E29: 419.9328891 | F29: 428.7863432 | G29: 437.6397973 | H29: 446.4932513 | I29: 455.3467054 | J29: 464.2001595 | K29: 473.0536136 | L29: 481.9070676 | M29: 490.7605217 | N29: 499.6139758 | O29: 508.4674299 | P29: 517.3208839 | Q29: 526.174338 | R29: 535.0277921 | S29: 543.8812462 | T29: 552.7347002 | U29: 561.5881543 | V29: 570.4416084 | W29: 579.2950625 | X29: 588.1485165 | Y29: 597.0019706 | Z29: 605.8554247 | AA29: 614.7088788 | AB29: 623.5623328 | AC29: 632.4157869 | AD29: 641.269241 | AE29: 650.1226951 | AF29: 658.9761491 | AG29: 667.8296032 | AH29: 676.6830573 | AI29: 685.5365114 | AJ29: 694.3899654 | AK29: 703.2434195 | AL29: 712.0968736 | AM29: 720.9503277 | AN29: 729.8037818 | AO29: 738.6572358 | AP29: 747.5106899 | AQ29: 756.364144 | AR29: 765.2175981 | AS29: 774.0710521 | AT29: 782.9245062 | AU29: 791.7779603 | AV29: 800.6314144 | AW29: 809.4848684 | AX29: 818.3383225 | AY29: 827.1917766 | AZ29: 836.0452307
A30: 68 | B30: 382.440578 | C30: 391.1638342 | D30: 399.8870904 | E30: 408.6103466 | F30: 417.3336028 | G30: 426.0568591 | H30: 434.7801153 | I30: 443.5033715 | J30: 452.2266277 | K30: 460.9498839 | L30: 469.6731402 | M30: 478.3963964 | N30: 487.1196526 | O30: 495.8429088 | P30: 504.5661651 | Q30: 513.2894213 | R30: 522.0126775 | S30: 530.7359337 | T30: 539.4591899 | U30: 548.1824462 | V30: 556.9057024 | W30: 565.6289586 | X30: 574.3522148 | Y30: 583.075471 | Z30: 591.7987273 | AA30: 600.5219835 | AB30: 609.2452397 | AC30: 617.9684959 | AD30: 626.6917522 | AE30: 635.4150084 | AF30: 644.1382646 | AG30: 652.8615208 | AH30: 661.584777 | AI30: 670.3080333 | AJ30: 679.0312895 | AK30: 687.7545457 | AL30: 696.4778019 | AM30: 705.2010581 | AN30: 713.9243144 | AO30: 722.6475706 | AP30: 731.3708268 | AQ30: 740.094083 | AR30: 748.8173393 | AS30: 757.5405955 | AT30: 766.2638517 | AU30: 774.9871079 | AV30: 783.7103641 | AW30: 792.4336204 | AX30: 801.1568766 | AY30: 809.8801328 | AZ30: 818.603389
A31: 69 | B31: 371.8254971 | C31: 380.4223293 | D31: 389.0191615 | E31: 397.6159938 | F31: 406.212826 | G31: 414.8096582 | H31: 423.4064904 | I31: 432.0033226 | J31: 440.6001549 | K31: 449.1969871 | L31: 457.7938193 | M31: 466.3906515 | N31: 474.9874837 | O31: 483.584316 | P31: 492.1811482 | Q31: 500.7779804 | R31: 509.3748126 | S31: 517.9716448 | T31: 526.568477 | U31: 535.1653093 | V31: 543.7621415 | W31: 552.3589737 | X31: 560.9558059 | Y31: 569.5526381 | Z31: 578.1494704 | AA31: 586.7463026 | AB31: 595.3431348 | AC31: 603.939967 | AD31: 612.5367992 | AE31: 621.1336314 | AF31: 629.7304637 | AG31: 638.3272959 | AH31: 646.9241281 | AI31: 655.5209603 | AJ31: 664.1177925 | AK31: 672.7146248 | AL31: 681.311457 | AM31: 689.9082892 | AN31: 698.5051214 | AO31: 707.1019536 | AP31: 715.6987858 | AQ31: 724.2956181 | AR31: 732.8924503 | AS31: 741.4892825 | AT31: 750.0861147 | AU31: 758.6829469 | AV31: 767.2797792 | AW31: 775.8766114 | AX31: 784.4734436 | AY31: 793.0702758 | AZ31: 801.667108
A32: 70 | B32: 361.5137043 | C32: 369.9877246 | D32: 378.461745 | E32: 386.9357653 | F32: 395.4097856 | G32: 403.8838059 | H32: 412.3578263 | I32: 420.8318466 | J32: 429.3058669 | K32: 437.7798873 | L32: 446.2539076 | M32: 454.7279279 | N32: 463.2019483 | O32: 471.6759686 | P32: 480.1499889 | Q32: 488.6240092 | R32: 497.0980296 | S32: 505.5720499 | T32: 514.0460702 | U32: 522.5200906 | V32: 530.9941109 | W32: 539.4681312 | X32: 547.9421515 | Y32: 556.4161719 | Z32: 564.8901922 | AA32: 573.3642125 | AB32: 581.8382329 | AC32: 590.3122532 | AD32: 598.7862735 | AE32: 607.2602939 | AF32: 615.7343142 | AG32: 624.2083345 | AH32: 632.6823548 | AI32: 641.1563752 | AJ32: 649.6303955 | AK32: 658.1044158 | AL32: 666.5784362 | AM32: 675.0524565 | AN32: 683.5264768 | AO32: 692.0004971 | AP32: 700.4745175 | AQ32: 708.9485378 | AR32: 717.4225581 | AS32: 725.8965785 | AT32: 734.3705988 | AU32: 742.8446191 | AV32: 751.3186395 | AW32: 759.7926598 | AX32: 768.2666801 | AY32: 776.7407004 | AZ32: 785.2147208
A33: 71 | B33: 351.4923845 | C33: 359.8470524 | D33: 368.2017204 | E33: 376.5563883 | F33: 384.9110562 | G33: 393.2657242 | H33: 401.6203921 | I33: 409.97506 | J33: 418.329728 | K33: 426.6843959 | L33: 435.0390638 | M33: 443.3937318 | N33: 451.7483997 | O33: 460.1030676 | P33: 468.4577355 | Q33: 476.8124035 | R33: 485.1670714 | S33: 493.5217393 | T33: 501.8764073 | U33: 510.2310752 | V33: 518.5857431 | W33: 526.9404111 | X33: 535.295079 | Y33: 543.6497469 | Z33: 552.0044148 | AA33: 560.3590828 | AB33: 568.7137507 | AC33: 577.0684186 | AD33: 585.4230866 | AE33: 593.7777545 | AF33: 602.1324224 | AG33: 610.4870904 | AH33: 618.8417583 | AI33: 627.1964262 | AJ33: 635.5510942 | AK33: 643.9057621 | AL33: 652.26043 | AM33: 660.6150979 | AN33: 668.9697659 | AO33: 677.3244338 | AP33: 685.6791017 | AQ33: 694.0337697 | AR33: 702.3884376 | AS33: 710.7431055 | AT33: 719.0977735 | AU33: 727.4524414 | AV33: 735.8071093 | AW33: 744.1617773 | AX33: 752.5164452 | AY33: 760.8711131 | AZ33: 769.225781
A34: 72 | B34: 341.7494347 | C34: 349.9880656 | D34: 358.2266965 | E34: 366.4653274 | F34: 374.7039582 | G34: 382.9425891 | H34: 391.18122 | I34: 399.4198509 | J34: 407.6584817 | K34: 415.8971126 | L34: 424.1357435 | M34: 432.3743744 | N34: 440.6130052 | O34: 448.8516361 | P34: 457.090267 | Q34: 465.3288979 | R34: 473.5675287 | S34: 481.8061596 | T34: 490.0447905 | U34: 498.2834214 | V34: 506.5220523 | W34: 514.7606831 | X34: 522.999314 | Y34: 531.2379449 | Z34: 539.4765758 | AA34: 547.7152066 | AB34: 555.9538375 | AC34: 564.1924684 | AD34: 572.4310993 | AE34: 580.6697301 | AF34: 588.908361 | AG34: 597.1469919 | AH34: 605.3856228 | AI34: 613.6242536 | AJ34: 621.8628845 | AK34: 630.1015154 | AL34: 638.3401463 | AM34: 646.5787771 | AN34: 654.817408 | AO34: 663.0560389 | AP34: 671.2946698 | AQ34: 679.5333006 | AR34: 687.7719315 | AS34: 696.0105624 | AT34: 704.2491933 | AU34: 712.4878241 | AV34: 720.726455 | AW34: 728.9650859 | AX34: 737.2037168 | AY34: 745.4423477 | AZ34: 753.6809785
A35: 73 | B35: 332.2734151 | C35: 340.399188 | D35: 348.5249609 | E35: 356.6507338 | F35: 364.7765068 | G35: 372.9022797 | H35: 381.0280526 | I35: 389.1538255 | J35: 397.2795984 | K35: 405.4053713 | L35: 413.5311443 | M35: 421.6569172 | N35: 429.7826901 | O35: 437.908463 | P35: 446.0342359 | Q35: 454.1600089 | R35: 462.2857818 | S35: 470.4115547 | T35: 478.5373276 | U35: 486.6631005 | V35: 494.7888735 | W35: 502.9146464 | X35: 511.0404193 | Y35: 519.1661922 | Z35: 527.2919651 | AA35: 535.417738 | AB35: 543.543511 | AC35: 551.6692839 | AD35: 559.7950568 | AE35: 567.9208297 | AF35: 576.0466026 | AG35: 584.1723756 | AH35: 592.2981485 | AI35: 600.4239214 | AJ35: 608.5496943 | AK35: 616.6754672 | AL35: 624.8012402 | AM35: 632.9270131 | AN35: 641.052786 | AO35: 649.1785589 | AP35: 657.3043318 | AQ35: 665.4301047 | AR35: 673.5558777 | AS35: 681.6816506 | AT35: 689.8074235 | AU35: 697.9331964 | AV35: 706.0589693 | AW35: 714.1847423 | AX35: 722.3105152 | AY35: 730.4362881 | AZ35: 738.562061
A36: 74 | B36: 323.0535041 | C36: 331.0694692 | D36: 339.0854344 | E36: 347.1013996 | F36: 355.1173648 | G36: 363.1333299 | H36: 371.1492951 | I36: 379.1652603 | J36: 387.1812255 | K36: 395.1971907 | L36: 403.2131558 | M36: 411.229121 | N36: 419.2450862 | O36: 427.2610514 | P36: 435.2770165 | Q36: 443.2929817 | R36: 451.3089469 | S36: 459.3249121 | T36: 467.3408772 | U36: 475.3568424 | V36: 483.3728076 | W36: 491.3887728 | X36: 499.4047379 | Y36: 507.4207031 | Z36: 515.4366683 | AA36: 523.4526335 | AB36: 531.4685987 | AC36: 539.4845638 | AD36: 547.500529 | AE36: 555.5164942 | AF36: 563.5324594 | AG36: 571.5484245 | AH36: 579.5643897 | AI36: 587.5803549 | AJ36: 595.5963201 | AK36: 603.6122852 | AL36: 611.6282504 | AM36: 619.6442156 | AN36: 627.6601808 | AO36: 635.676146 | AP36: 643.6921111 | AQ36: 651.7080763 | AR36: 659.7240415 | AS36: 667.7400067 | AT36: 675.7559718 | AU36: 683.771937 | AV36: 691.7879022 | AW36: 699.8038674 | AX36: 707.8198325 | AY36: 715.8357977 | AZ36: 723.8517629
A37: 75 | B37: 314.0794573 | C37: 321.988543 | D37: 329.8976286 | E37: 337.8067143 | F37: 345.7157999 | G37: 353.6248855 | H37: 361.5339712 | I37: 369.4430568 | J37: 377.3521425 | K37: 385.2612281 | L37: 393.1703138 | M37: 401.0793994 | N37: 408.988485 | O37: 416.8975707 | P37: 424.8066563 | Q37: 432.715742 | R37: 440.6248276 | S37: 448.5339132 | T37: 456.4429989 | U37: 464.3520845 | V37: 472.2611702 | W37: 480.1702558 | X37: 488.0793414 | Y37: 495.9884271 | Z37: 503.8975127 | AA37: 511.8065984 | AB37: 519.715684 | AC37: 527.6247696 | AD37: 535.5338553 | AE37: 543.4429409 | AF37: 551.3520266 | AG37: 559.2611122 | AH37: 567.1701979 | AI37: 575.0792835 | AJ37: 582.9883691 | AK37: 590.8974548 | AL37: 598.8065404 | AM37: 606.7156261 | AN37: 614.6247117 | AO37: 622.5337973 | AP37: 630.442883 | AQ37: 638.3519686 | AR37: 646.2610543 | AS37: 654.1701399 | AT37: 662.0792255 | AU37: 669.9883112 | AV37: 677.8973968 | AW37: 685.8064825 | AX37: 693.7155681 | AY37: 701.6246537 | AZ37: 709.5337394
A38: 76 | B38: 305.3415697 | C38: 313.1465885 | D38: 320.9516072 | E38: 328.7566259 | F38: 336.5616446 | G38: 344.3666634 | H38: 352.1716821 | I38: 359.9767008 | J38: 367.7817195 | K38: 375.5867383 | L38: 383.391757 | M38: 391.1967757 | N38: 399.0017944 | O38: 406.8068132 | P38: 414.6118319 | Q38: 422.4168506 | R38: 430.2218693 | S38: 438.0268881 | T38: 445.8319068 | U38: 453.6369255 | V38: 461.4419442 | W38: 469.246963 | X38: 477.0519817 | Y38: 484.8570004 | Z38: 492.6620191 | AA38: 500.4670379 | AB38: 508.2720566 | AC38: 516.0770753 | AD38: 523.882094 | AE38: 531.6871128 | AF38: 539.4921315 | AG38: 547.2971502 | AH38: 555.1021689 | AI38: 562.9071877 | AJ38: 570.7122064 | AK38: 578.5172251 | AL38: 586.3222438 | AM38: 594.1272626 | AN38: 601.9322813 | AO38: 609.7373 | AP38: 617.5423187 | AQ38: 625.3473375 | AR38: 633.1523562 | AS38: 640.9573749 | AT38: 648.7623936 | AU38: 656.5674124 | AV38: 664.3724311 | AW38: 672.1774498 | AX38: 679.9824685 | AY38: 687.7874872 | AZ38: 695.592506
A39: 77 | B39: 296.8306403 | C39: 304.5342951 | D39: 312.23795 | E39: 319.9416048 | F39: 327.6452596 | G39: 335.3489145 | H39: 343.0525693 | I39: 350.7562242 | J39: 358.459879 | K39: 366.1635339 | L39: 373.8671887 | M39: 381.5708436 | N39: 389.2744984 | O39: 396.9781533 | P39: 404.6818081 | Q39: 412.3854629 | R39: 420.0891178 | S39: 427.7927726 | T39: 435.4964275 | U39: 443.2000823 | V39: 450.9037372 | W39: 458.607392 | X39: 466.3110469 | Y39: 474.0147017 | Z39: 481.7183565 | AA39: 489.4220114 | AB39: 497.1256662 | AC39: 504.8293211 | AD39: 512.5329759 | AE39: 520.2366308 | AF39: 527.9402856 | AG39: 535.6439405 | AH39: 543.3475953 | AI39: 551.0512502 | AJ39: 558.754905 | AK39: 566.4585598 | AL39: 574.1622147 | AM39: 581.8658695 | AN39: 589.5695244 | AO39: 597.2731792 | AP39: 604.9768341 | AQ39: 612.6804889 | AR39: 620.3841438 | AS39: 628.0877986 | AT39: 635.7914534 | AU39: 643.4951083 | AV39: 651.1987631 | AW39: 658.902418 | AX39: 666.6060728 | AY39: 674.3097277 | AZ39: 682.0133825
A40: 78 | B40: 288.5379398 | C40: 296.1428298 | D40: 303.7477198 | E40: 311.3526099 | F40: 318.9574999 | G40: 326.56239 | H40: 334.16728 | I40: 341.77217 | J40: 349.3770601 | K40: 356.9819501 | L40: 364.5868401 | M40: 372.1917302 | N40: 379.7966202 | O40: 387.4015103 | P40: 395.0064003 | Q40: 402.6112903 | R40: 410.2161804 | S40: 417.8210704 | T40: 425.4259605 | U40: 433.0308505 | V40: 440.6357405 | W40: 448.2406306 | X40: 455.8455206 | Y40: 463.4504107 | Z40: 471.0553007 | AA40: 478.6601907 | AB40: 486.2650808 | AC40: 493.8699708 | AD40: 501.4748609 | AE40: 509.0797509 | AF40: 516.6846409 | AG40: 524.289531 | AH40: 531.894421 | AI40: 539.4993111 | AJ40: 547.1042011 | AK40: 554.7090911 | AL40: 562.3139812 | AM40: 569.9188712 | AN40: 577.5237612 | AO40: 585.1286513 | AP40: 592.7335413 | AQ40: 600.3384314 | AR40: 607.9433214 | AS40: 615.5482114 | AT40: 623.1531015 | AU40: 630.7579915 | AV40: 638.3628816 | AW40: 645.9677716 | AX40: 653.5726616 | AY40: 661.1775517 | AZ40: 668.7824417
A41: 79 | B41: 280.455181 | C41: 287.9638066 | D41: 295.4724322 | E41: 302.9810578 | F41: 310.4896835 | G41: 317.9983091 | H41: 325.5069347 | I41: 333.0155603 | J41: 340.5241859 | K41: 348.0328115 | L41: 355.5414371 | M41: 363.0500627 | N41: 370.5586883 | O41: 378.0673139 | P41: 385.5759395 | Q41: 393.0845651 | R41: 400.5931908 | S41: 408.1018164 | T41: 415.610442 | U41: 423.1190676 | V41: 430.6276932 | W41: 438.1363188 | X41: 445.6449444 | Y41: 453.15357 | Z41: 460.6621956 | AA41: 468.1708212 | AB41: 475.6794468 | AC41: 483.1880724 | AD41: 490.6966981 | AE41: 498.2053237 | AF41: 505.7139493 | AG41: 513.2225749 | AH41: 520.7312005 | AI41: 528.2398261 | AJ41: 535.7484517 | AK41: 543.2570773 | AL41: 550.7657029 | AM41: 558.2743285 | AN41: 565.7829541 | AO41: 573.2915798 | AP41: 580.8002054 | AQ41: 588.308831 | AR41: 595.8174566 | AS41: 603.3260822 | AT41: 610.8347078 | AU41: 618.3433334 | AV41: 625.851959 | AW41: 633.3605846 | AX41: 640.8692102 | AY41: 648.3778358 | AZ41: 655.8864614
A42: 80 | B42: 272.5744913 | C42: 279.989259 | D42: 287.4040268 | E42: 294.8187946 | F42: 302.2335624 | G42: 309.6483302 | H42: 317.063098 | I42: 324.4778658 | J42: 331.8926336 | K42: 339.3074014 | L42: 346.7221691 | M42: 354.1369369 | N42: 361.5517047 | O42: 368.9664725 | P42: 376.3812403 | Q42: 383.7960081 | R42: 391.2107759 | S42: 398.6255437 | T42: 406.0403114 | U42: 413.4550792 | V42: 420.869847 | W42: 428.2846148 | X42: 435.6993826 | Y42: 443.1141504 | Z42: 450.5289182 | AA42: 457.943686 | AB42: 465.3584538 | AC42: 472.7732215 | AD42: 480.1879893 | AE42: 487.6027571 | AF42: 495.0175249 | AG42: 502.4322927 | AH42: 509.8470605 | AI42: 517.2618283 | AJ42: 524.6765961 | AK42: 532.0913639 | AL42: 539.5061316 | AM42: 546.9208994 | AN42: 554.3356672 | AO42: 561.750435 | AP42: 569.1652028 | AQ42: 576.5799706 | AR42: 583.9947384 | AS42: 591.4095062 | AT42: 598.8242739 | AU42: 606.2390417 | AV42: 613.6538095 | AW42: 621.0685773 | AX42: 628.4833451 | AY42: 635.8981129 | AZ42: 643.3128807
C59: Popisky os
C60: y | D60: x
C61: 0.4 | D61: =$B1/1000 -> 10000
C62: 0.41 | D62: =D61+300 -> 10300
C63: 0.42 | D63: =D62+300 -> 10600
C64: 0.43 | D64: 10900
C65: 0.44 | D65: 11200
C66: 0.45 | D66: 11500
C67: 0.46 | D67: 11800
C68: 0.47 | D68: 12100
C69: 0.48 | D69: 12400
C70: 0.49 | D70: 12700
C71: 0.5 | D71: 13000
C72: 0.51 | D72: 13300
C73: 0.52 | D73: =D72+300 -> 13600
C74: 0.53 | D74: =D73+300 -> 13900
C75: 0.54 | D75: 14200
C76: 0.55 | D76: 14500
C77: 0.56 | D77: 14800
C78: 0.57 | D78: 15100
C79: 0.58 | D79: 15400
C80: 0.59 | D80: 15700
C81: 0.6 | D81: 16000
C82: 0.61 | D82: 16300
C83: 0.62 | D83: 16600
C84: 0.63 | D84: 16900
C85: 0.64 | D85: 17200
C86: 0.65 | D86: 17500
C87: 0.66 | D87: 17800
C88: 0.67 | D88: 18100
C89: 0.68 | D89: 18400
C90: 0.69 | D90: 18700
C91: 0.7 | D91: 19000
C92: 0.71 | D92: 19300
C93: 0.72 | D93: 19600
C94: 0.73 | D94: 19900
C95: 0.74 | D95: 20200
C96: 0.75 | D96: 20500
C97: 0.76 | D97: 20800
C98: 0.77 | D98: 21100
C99: 0.78 | D99: 21400
C100: 0.79 | D100: 21700
C101: 0.8 | D101: 22000
D102: 22300
D103: 22600
D104: 22900
D105: 23200
D106: 23500
D107: 23800
D108: 24100
D109: 24400
D110: 24700
D111: 25000

Sheet CA NPV FCFF
A1: Citlivostní analýza NVP FCFF na poměr využití tepla
A2: Poměr využití tepla | B2: 0.4 | C2: 0.41 | D2: 0.42 | E2: 0.43 | F2: 0.44 | G2: 0.45 | H2: 0.46 | I2: 0.47 | J2: 0.48 | K2: 0.49 | L2: 0.5 | M2: 0.51 | N2: 0.52 | O2: 0.53 | P2: 0.54 | Q2: 0.55 | R2: 0.56 | S2: 0.57 | T2: 0.58 | U2: 0.59 | V2: 0.6 | W2: 0.61 | X2: 0.62 | Y2: 0.63 | Z2: 0.64 | AA2: 0.65 | AB2: 0.66 | AC2: 0.67 | AD2: 0.68 | AE2: 0.69 | AF2: 0.7 | AG2: 0.71 | AH2: 0.72 | AI2: 0.73 | AJ2: 0.74 | AK2: 0.75 | AL2: 0.76 | AM2: 0.77 | AN2: 0.78 | AO2: 0.79 | AP2: 0.8
A3: NPV z FCFF | B3: -9936643.341 | C3: -9439255.241 | D3: -8941867.141 | E3: -8444479.042 | F3: -7947090.942 | G3: -7449702.843 | H3: -6952314.743 | I3: -6454926.643 | J3: -5957538.544 | K3: -5460150.444 | L3: -4962762.345 | M3: -4465374.245 | N3: -3967986.145 | O3: -3470598.046 | P3: -2973209.946 | Q3: -2475821.847 | R3: -1978433.747 | S3: -1481045.647 | T3: -983657.5479 | U3: -486269.4483 | V3: 11118.6513 | W3: 508506.7509 | X3: 1005894.85 | Y3: 1503282.95 | Z3: 2000671.05 | AA3: 2498059.149 | AB3: 2995447.249 | AC3: 3492835.348 | AD3: 3990223.448 | AE3: 4487611.548 | AF3: 4984999.647 | AG3: 5482387.747 | AH3: 5979775.846 | AI3: 6477163.946 | AJ3: 6974552.046 | AK3: 7471940.145 | AL3: 7969328.245 | AM3: 8466716.344 | AN3: 8964104.444 | AO3: 9461492.544 | AP3: 9958880.643
